bitfinex/quotes_ETHUSD_20260114
["timestamp","ask_amount","ask_price","bid_price","bid_amount"]
[1768424810312,0.82471102,3375.0,3374.8,0.001]
[1768424811593,0.397,3375.0,3374.8,0.001]
[1768424811794,3.35996355,3375.0,3374.8,0.001]
[1768424811990,0.397,3375.0,3374.8,0.001]
[1768424821192,1.30152644,3375.0,3374.8,0.001]
[1768424821400,0.90452644,3374.9,3374.8,0.001]
[1768424821712,1.62725661,3374.9,3374.8,0.001]
[1768424822708,0.90452644,3374.8,3374.5,0.001]
[1768424823038,0.90452644,3374.6,3373.5,0.9806835]
[1768424823350,1.62725661,3374.9,3373.8,0.9806835]
[1768424823659,0.16013462,3376.1,3374.0,0.9806835]
[1768424823660,0.398,3375.1,3374.0,0.9806835]
[1768424823785,0.16013462,3376.1,3374.2,0.9806835]
[1768424823786,1.06466106,3376.1,3374.2,0.9806835]
[1768424823987,3.3600853,3376.0,3374.4,0.9806835]
[1768424824187,0.16013462,3376.1,3374.6,0.9806835]
[1768424824424,0.90452644,3377.2,3374.6,1.01031664]
[1768424824716,0.90452644,3377.0,3374.6,0.9806835]
[1768424824920,0.90452644,3376.8,3374.8,0.9806835]
[1768424825217,0.90452644,3376.8,3374.2,3.508]
[1768424825218,0.90452644,3376.8,3374.4,0.9806835]
[1768424825513,0.90452644,3376.6,3374.6,3.94398084]
[1768424825685,0.90452644,3376.6,3374.7,0.9806835]
[1768424827118,0.90452644,3376.4,3374.8,0.9806835]
[1768424827311,8.88494001,3376.5,3374.8,0.9806835]
[1768424827312,0.90452644,3376.2,3374.8,0.9806835]
[1768424827826,0.90452644,3376.2,3373.9,2.96390949]
[1768424827827,0.90452644,3376.2,3374.0,0.9806835]
[1768424828116,0.397,3376.3,3373.5,0.9806835]
[1768424828117,0.90452644,3375.7,3373.5,0.9806835]
[1768424828517,0.90452644,3375.7,3373.5,3.94491047]
[1768424828897,0.90452644,3375.7,3373.5,0.9806835]
[1768424829104,1.44908545,3376.1,3373.5,0.9806835]
[1768424829105,0.90452644,3375.5,3373.5,0.9806835]
[1768424829314,0.90452644,3375.3,3373.5,0.9806835]
[1768424831131,1.67242716,3375.4,3373.5,3.94491896]
[1768424831132,0.90452644,3375.1,3373.5,3.94491896]
[1768424831520,0.90452644,3375.1,3373.5,0.9806835]
[1768424831837,0.90452644,3375.1,3373.5,3.94494468]
[1768424832640,0.90452644,3375.1,3373.6,0.9806835]
[1768424832839,0.90452644,3374.9,3373.6,0.9806835]
[1768424833335,0.90452644,3374.7,3373.4,0.001]
[1768424833637,0.90452644,3374.7,3373.4,2.965362]
[1768424833812,0.90452644,3374.7,3373.4,0.001]
[1768424834010,0.90452644,3374.5,3373.4,0.001]
[1768424834521,0.90452644,3374.5,3373.8,0.001]
[1768424834717,0.397,3374.6,3373.8,0.001]
[1768424834942,0.63232771,3374.5,3373.8,0.001]
[1768424835134,2.9634898,3374.4,3373.8,0.001]
[1768424835826,5.9269796,3374.4,3373.8,0.001]
[1768424836230,0.63232771,3374.5,3373.8,0.001]
[1768424836436,2.96347818,3374.5,3373.8,0.9816835]
[1768424836823,2.96347818,3374.5,3373.8,0.001]
[1768424837141,5.92695636,3374.5,3373.8,0.001]
[1768424837542,6.8314828,3374.5,3373.8,0.001]
[1768424838542,5.92695636,3374.5,3373.8,0.001]
[1768424838752,0.72284828,3374.4,3373.8,0.001]
[1768424839114,3.36035129,3374.6,3373.8,0.9816835]
[1768424840011,0.90452644,3374.5,3373.8,0.001]
[1768424841933,0.95043224,3374.3,3373.8,0.001]
[1768424843445,0.95043224,3374.3,3373.4,0.001]
[1768424843631,0.95043224,3374.1,3373.4,0.001]
[1768424843947,3.91427337,3374.0,3373.4,0.001]
[1768424844249,6.8781145,3374.0,3373.4,0.001]
[1768424845049,3.91427337,3374.0,3373.4,0.001]
[1768424845645,6.8781145,3374.0,3373.4,0.001]
[1768424845851,0.75658557,3373.9,3373.4,0.001]
[1768424846153,2.96279352,3375.2,3373.4,0.001]
[1768424846154,0.398,3374.9,3373.4,0.97406774]
[1768424847076,0.95043224,3375.7,3373.6,0.97306774]
[1768424847280,2.96226079,3375.8,3373.8,0.97306774]
[1768424847464,0.398,3375.7,3373.8,0.97306774]
[1768424847666,0.002,3374.6,3373.8,0.97306774]
[1768424847871,0.398,3375.7,3374.6,0.97306774]
[1768424848067,0.002,3374.9,3374.7,0.97306774]
[1768424848273,0.398,3375.7,3374.9,0.97306774]
[1768424848672,3.36036861,3375.7,3374.9,0.97306774]
[1768424849491,0.398,3375.7,3374.9,0.97306774]
[1768424849997,3.36039047,3375.7,3374.9,0.97306774]
[1768424850202,0.398,3375.7,3374.9,0.97306774]
[1768424850409,0.002,3375.9,3375.0,1.1393713]
[1768424852191,0.002,3375.9,3375.2,0.97306774]
[1768424854284,0.002,3375.9,3375.4,0.97306774]
[1768424856101,0.002,3375.9,3375.4,3.93562498]
[1768424856607,0.002,3375.9,3375.5,0.97306774]
[1768424856904,0.002,3375.9,3375.6,0.68983233]
[1768424860321,0.002,3375.9,3375.7,0.97306774]
[1768424860602,0.002,3376.2,3375.7,0.97306774]
[1768424861118,0.002,3376.2,3375.7,3.93539731]
[1768424861311,0.002,3376.2,3375.7,0.97306774]
[1768424863820,0.002,3376.2,3375.5,3.93551044]
[1768424864107,0.002,3376.2,3375.5,4.62532381]
[1768424864401,0.002,3376.2,3375.5,4.62538717]
[1768424864788,0.002,3376.2,3375.6,0.97306774]
[1768424866622,0.002,3376.2,3375.6,3.9354177]
[1768424867720,0.002,3376.2,3375.6,0.97306774]
[1768424868027,0.002,3376.2,3375.6,3.93544955]
[1768424868203,0.002,3376.2,3375.7,0.97306774]
[1768424869892,0.002,3376.2,3375.5,3.93554506]
[1768424870203,0.002,3376.2,3375.5,3.93557299]
[1768424871000,0.002,3376.2,3375.4,2.96255453]
[1768424871218,0.90777686,3376.2,3375.4,2.96255453]
[1768424872518,0.002,3375.9,3375.5,2.96249086]
[1768424872727,0.002,3375.9,3375.5,3.35827492]
[1768424873834,0.002,3375.9,3375.6,0.99534971]
[1768424874123,0.002,3376.2,3375.9,0.99534971]
[1768424874634,0.002,3376.2,3375.5,6.32079899]
[1768424874635,1e-08,3376.3,3376.0,0.99534971]
[1768424874938,0.002,3377.3,3376.3,0.99534971]
[1768424875138,3.86873327,3377.3,3376.3,0.99534971]
[1768424875337,0.90577686,3377.2,3376.3,0.99534971]
[1768424875709,2.96112048,3377.1,3376.3,0.99534971]
[1768424876944,3.86684584,3377.2,3376.3,0.99534971]
[1768424877997,3.86684584,3377.2,3376.1,0.99534971]
[1768424878193,0.90577686,3377.1,3376.1,0.99534971]
[1768424879639,0.90577686,3377.1,3376.2,2.96190983]
[1768424879939,0.90577686,3377.1,3376.2,3.65384479]
[1768424880122,0.90577686,3377.1,3376.2,4.6491945]
[1768424881733,0.42897333,3377.3,3376.4,0.99534971]
[1768424881734,1.33475019,3377.3,3376.4,0.99534971]
[1768424881920,0.90777686,3377.3,3376.4,0.99534971]
[1768424882235,3.86873263,3377.3,3376.4,0.99534971]
[1768424883232,3.86873263,3377.3,3374.7,1.47861936]
[1768424883233,0.90577686,3377.2,3376.0,0.99534971]
[1768424884725,0.90577686,3377.0,3376.0,0.99534971]
[1768424884911,0.90577686,3377.0,3376.1,0.99534971]
[1768424885108,0.002,3376.8,3376.1,0.99534971]
[1768424886839,0.002,3376.8,3376.1,3.95730911]
[1768424887439,0.002,3376.8,3376.2,0.99534971]
[1768424887807,0.002,3376.8,3375.8,0.001]
[1768424887808,0.90777686,3376.8,3375.8,0.001]
[1768424888137,9.12568909,3375.9,3374.9,3.95835069]
[1768424888339,9.12568909,3375.9,3374.3,0.99534971]
[1768424888340,0.90577686,3375.8,3374.3,0.99534971]
[1768424888508,0.90577686,3375.8,3374.2,0.393]
[1768424888509,0.90577686,3375.8,3374.7,2.96320491]
[1768424888709,0.90577686,3375.8,3374.9,2.96304361]
[1768424888932,0.397,3375.9,3375.0,0.99534971]
[1768424889120,0.90577686,3375.8,3374.9,0.69216085]
[1768424889945,0.90577686,3375.8,3374.9,3.65520281]
[1768424890123,0.90577686,3375.8,3374.9,0.69216085]
[1768424890443,3.86811596,3375.8,3374.9,0.69216085]
[1768424891332,3.86811596,3375.8,3375.0,0.46506023]
[1768424893442,3.86811596,3375.8,3375.0,0.11197021]
[1768424894340,0.90577686,3375.8,3375.0,0.11197021]
[1768424894840,0.397,3375.9,3375.0,4.07027284]
[1768424895134,0.397,3376.1,3375.1,0.99534971]
[1768424895336,0.397,3376.1,3375.2,0.99534971]
[1768424895644,1.30277686,3376.1,3375.2,0.99534971]
[1768424896727,4.2648194,3376.1,3375.2,0.99534971]
[1768424897610,4.2648194,3376.1,3375.4,0.001]
[1768424899533,0.90577686,3376.0,3375.4,0.001]
[1768424899846,1.62846305,3376.0,3375.4,0.001]
[1768424901144,6.84491844,3375.9,3375.4,0.001]
[1768424901367,0.92057234,3375.8,3374.4,0.93083291]
[1768424901852,0.92057234,3375.8,3374.5,0.93083291]
[1768424903372,0.92057234,3375.6,3374.2,0.93083291]
[1768424903517,0.92057234,3375.4,3374.1,0.001]
[1768424903720,0.92057234,3375.2,3374.1,0.001]
[1768424904535,0.92057234,3375.2,3374.1,0.93183291]
[1768424904740,0.398,3375.1,3374.3,0.93083291]
[1768424905440,2.96296296,3375.0,3374.3,0.93083291]
[1768424907944,0.398,3375.1,3374.3,0.93083291]
[1768424908253,0.398,3375.1,3374.4,0.93083291]
[1768424908866,0.92057234,3375.4,3374.4,0.93083291]
[1768424909034,0.398,3375.5,3374.6,0.93083291]
[1768424909225,0.398,3375.5,3374.7,0.96046517]
[1768424909626,3.36053969,3375.5,3374.7,0.96046517]
[1768424909939,0.398,3375.5,3374.7,0.93083291]
[1768424910154,0.398,3375.5,3374.8,0.93083291]
[1768424911065,0.4,3375.5,3374.8,0.93083291]
[1768424911249,0.4,3375.5,3374.9,0.96046341]
[1768424911250,0.002,3375.5,3374.9,0.96046341]
[1768424911426,0.002,3375.5,3375.1,0.93083291]
[1768424911626,0.002,3375.8,3375.2,0.93083291]
[1768424911845,0.002,3375.8,3375.4,0.93083291]
[1768424914048,0.002,3375.8,3375.6,0.93083291]
[1768424915050,0.002,3375.8,3375.4,0.93083291]
[1768424917573,0.002,3375.8,3375.4,2.96255766]
[1768424917854,0.92257234,3375.8,3374.8,0.93083291]
[1768424918059,0.92257234,3375.8,3374.9,0.16175866]
[1768424918458,0.92257234,3375.8,3374.6,0.001]
[1768424918834,0.92257234,3375.8,3374.6,2.964253]
[1768424919269,0.92257234,3375.8,3374.6,0.001]
[1768424919633,0.92057234,3375.6,3374.6,0.001]
[1768424922146,0.92057234,3375.4,3374.6,0.001]
[1768424922346,1.60513439,3375.3,3374.6,0.001]
[1768424923448,0.92057234,3375.2,3374.9,0.001]
[1768424923654,0.92057234,3375.2,3374.6,0.001]
[1768424924172,0.68456205,3375.3,3374.6,0.001]
[1768424924343,0.002,3375.5,3374.6,0.93183291]
[1768424924546,2.96261183,3375.4,3374.6,0.93183291]
[1768424926580,6.84763282,3375.5,3374.6,0.93183291]
[1768424927600,0.002,3375.5,3374.6,0.93183291]
[1768424927895,0.002,3375.8,3375.1,0.93083291]
[1768424928047,0.002,3375.8,3375.2,0.02962787]
[1768424929180,0.002,3375.8,3375.1,0.93083291]
[1768424930261,0.002,3375.8,3375.1,1.32022118]
[1768424930786,0.002,3375.8,3375.1,0.38938827]
[1768424930996,0.002,3375.8,3374.8,0.99130594]
[1768424931786,0.98202212,3375.8,3374.6,0.99230594]
[1768424931950,0.98202212,3375.8,3374.6,3.95559869]
[1768424932677,0.98202212,3375.8,3374.6,0.001]
[1768424932860,0.98002212,3375.6,3374.6,0.69292702]
[1768424933473,0.98002212,3375.6,3374.6,3.65621749]
[1768424933677,0.98002212,3375.6,3374.6,0.69292702]
[1768424933881,0.98002212,3375.6,3374.6,0.001]
[1768424935161,0.98002212,3375.4,3374.6,0.001]
[1768424935463,0.98002212,3375.2,3374.1,0.001]
[1768424935980,0.98002212,3375.2,3374.9,0.001]
[1768424936146,0.98002212,3375.2,3374.1,0.001]
[1768424936482,0.98002212,3375.2,3373.7,0.001]
[1768424936686,0.98002212,3375.0,3373.7,0.001]
[1768424937265,0.98002212,3374.8,3373.4,0.001]
[1768424938188,7.30412362,3374.9,3373.4,0.99230594]
[1768424938481,6.3241015,3374.9,3373.4,0.99230594]
[1768424938647,0.98002212,3374.8,3373.4,0.99230594]
[1768424939351,6.64202437,3374.9,3373.6,0.99130594]
[1768424940368,1.37802212,3375.0,3373.6,0.99130594]
[1768424940369,0.398,3375.0,3373.6,0.99130594]
[1768424940572,0.98002212,3375.3,3373.8,0.99130594]
[1768424940573,5.92560004,3375.2,3373.8,0.99130594]
[1768424940965,0.98002212,3375.1,3373.8,0.99130594]
[1768424941388,0.398,3375.3,3373.4,2.96536499]
[1768424941389,0.98002212,3374.9,3373.4,2.96536499]
[1768424941602,0.98002212,3374.9,3373.4,0.99230594]
[1768424941775,0.98002212,3374.7,3373.4,0.99230594]
[1768424942198,0.98002212,3374.7,3373.5,0.99130594]
[1768424943097,0.9868911,3374.8,3373.8,0.99130594]
[1768424943304,2.96296296,3375.0,3373.9,0.99130594]
[1768424943507,5.92539922,3375.3,3374.1,0.99130594]
[1768424943837,2.96269961,3375.3,3374.3,0.99130594]
[1768424944010,5.92539922,3375.3,3374.3,0.99130594]
[1768424946082,0.98002212,3375.2,3374.2,0.39551471]
[1768424946281,0.98002212,3375.2,3374.0,0.99130594]
[1768424947080,0.98002212,3375.2,3374.0,3.95512674]
[1768424947285,0.98002212,3375.2,3374.1,0.99130594]
[1768424948201,2.96287517,3375.1,3374.6,0.001]
[1768424948390,3.69325008,3375.1,3374.6,0.001]
[1768424951340,2.96287517,3375.1,3374.6,0.001]
[1768424952888,0.98002212,3375.0,3374.6,0.001]
[1768424953697,0.98002212,3375.0,3374.0,0.99130594]
[1768424954916,6.90612362,3374.9,3374.0,0.99130594]
[1768424955220,3.94307287,3374.9,3374.0,0.99130594]
[1768424955596,3.94307287,3374.9,3372.9,0.99130594]
[1768424955597,0.98002212,3374.8,3372.9,0.99130594]
[1768424955808,12.54281272,3374.9,3372.9,0.99130594]
[1768424955809,0.98002212,3374.6,3372.9,0.99130594]
[1768424955997,12.54281272,3374.9,3372.9,0.99130594]
[1768424955998,0.98002212,3374.4,3372.9,0.99130594]
[1768424956616,0.98002212,3374.3,3372.9,0.99130594]
[1768424956919,0.98002212,3373.9,3372.9,0.99130594]
[1768424958691,0.98002212,3373.9,3372.4,0.001]
[1768424959032,0.98002212,3373.5,3372.4,0.001]
[1768424959204,0.98002212,3373.3,3372.4,0.001]
[1768424959397,1.68167191,3373.4,3372.4,0.99230594]
[1768424959717,0.27606742,3373.3,3372.4,0.99230594]
[1768424959924,0.27606742,3373.2,3372.4,0.99230594]
[1768424960112,2.66169403,3373.4,3372.4,0.99230594]
[1768424960421,1.4314947,3373.3,3372.4,0.99230594]
[1768424960726,1.4314947,3373.3,3371.8,2.96569269]
[1768424960727,0.94566092,3373.1,3370.7,0.95508917]
[1768424961025,0.95739759,3372.7,3371.1,0.94831277]
[1768424961223,0.95739759,3372.5,3371.1,0.94831277]
[1768424961398,0.27606753,3372.4,3371.1,0.94831277]
[1768424961589,0.95739759,3372.4,3371.1,0.94831277]
[1768424963502,5.93067046,3372.3,3371.1,0.94831277]
[1768424963817,0.9853274,3372.2,3371.1,0.94831277]
[1768424965931,5.9310222,3372.1,3371.1,0.94831277]
[1768424968804,3.95076026,3372.2,3371.2,0.94731277]
[1768424969144,0.95739759,3372.9,3371.4,0.94731277]
[1768424969700,0.95739759,3372.9,3371.1,0.001]
[1768424969906,0.95739759,3372.5,3371.1,0.94831277]
[1768424971845,0.95739759,3372.5,3371.4,0.001]
[1768424972134,2.96501213,3372.7,3371.1,0.94831277]
[1768424972135,0.95739759,3372.1,3371.1,0.94831277]
[1768424972335,0.95739759,3372.1,3370.1,0.94731277]
[1768424972336,0.95739759,3371.9,3370.1,0.94731277]
[1768424972514,0.95739759,3371.9,3370.3,0.94731277]
[1768424974231,0.95739759,3371.7,3370.4,0.94731277]
[1768424974433,0.68889475,3371.6,3370.6,0.94731277]
[1768424974617,1.64629234,3371.6,3370.6,0.94731277]
[1768424974816,2.96577495,3371.8,3370.6,0.94731277]
[1768424975040,2.96577495,3371.8,3370.8,0.94731277]
[1768424976242,5.9315499,3371.8,3370.8,0.94731277]
[1768424977446,5.931374,3371.9,3370.8,0.94731277]
[1768424978121,0.002,3372.2,3371.0,0.94731277]
[1768424978327,2.96559006,3372.1,3371.2,0.94731277]
[1768424978529,5.93118012,3372.1,3371.2,0.94731277]
[1768424980151,0.002,3372.2,3371.2,0.94731277]
[1768424982160,2.9655111,3372.1,3371.2,0.94731277]
[1768424982773,5.9310222,3372.1,3371.2,0.94731277]
[1768424983861,6.88841979,3372.1,3371.2,0.94731277]
[1768424984350,3.24111076,3372.0,3371.2,0.94731277]
[1768424984555,2.9656745,3372.0,3371.2,0.94731277]
[1768424984935,0.002,3371.9,3371.2,0.94731277]
[1768424985255,0.002,3371.9,3371.2,1.42156715]
[1768424985628,0.002,3371.9,3371.3,0.94731277]
[1768424987927,0.95939759,3371.9,3371.2,0.47425438]
[1768424988142,0.95939759,3371.9,3371.1,0.001]
[1768424988932,2.96577495,3371.8,3371.1,0.001]
[1768424989150,3.65486361,3371.8,3371.1,0.001]
[1768424989332,4.6122612,3371.8,3371.1,0.001]
[1768424989532,7.57803615,3371.8,3371.1,0.001]
[1768424990562,0.92906251,3371.7,3369.6,0.94608254]
[1768424990768,0.92906251,3371.3,3367.7,0.94608254]
[1768424990947,0.92906251,3370.6,3368.9,2.96826602]
[1768424991148,0.92906251,3370.6,3368.6,0.394]
[1768424991149,0.92906251,3370.6,3369.4,0.94608254]
[1768424992735,0.92906251,3370.6,3368.5,0.394]
[1768424993048,0.72605481,3370.5,3368.8,0.94608254]
[1768424993256,0.92906251,3370.9,3368.7,5.93700834]
[1768424993454,0.92906251,3370.9,3368.8,1.34008254]
[1768424993648,0.92906251,3370.9,3368.9,0.94608254]
[1768424994654,0.92906251,3370.9,3369.1,0.94608254]
[1768424994854,0.92906251,3370.7,3369.1,0.94608254]
[1768424995163,6.86272417,3370.6,3369.3,0.94608254]
[1768424995363,0.92906251,3370.5,3369.3,0.94608254]
[1768424996235,2.96683083,3370.6,3369.3,0.94608254]
[1768424997155,6.8626232,3370.7,3369.4,3.91396999]
[1768424997357,0.92906251,3370.5,3368.6,1.10080448]
[1768424997565,0.92906251,3370.5,3369.1,3.9142069]
[1768424997759,0.92906251,3370.5,3369.6,0.001]
[1768424997972,0.92906251,3370.5,3369.2,0.94608254]
[1768424998140,1.09146979,3370.4,3369.2,0.94608254]
[1768424998536,1.09146979,3370.4,3369.3,0.94608254]
[1768424998759,1.09146979,3370.4,3369.4,0.97576141]
[1768424998966,6.33256069,3370.7,3369.5,0.97576053]
[1768424998967,2.96674827,3370.7,3369.5,0.97576053]
[1768424999142,2.96674827,3370.7,3369.5,0.94608254]
[1768424999472,5.93356069,3370.7,3369.6,0.94608254]
[1768425000375,0.92906251,3370.6,3369.0,0.94608254]
[1768425000578,0.92906251,3370.4,3368.8,0.94608254]
[1768425000781,0.92906251,3370.4,3368.8,3.91449088]
[1768425001278,0.92906251,3370.4,3368.9,0.94608254]
[1768425002067,0.92906251,3370.4,3368.9,1.34008254]
[1768425002269,0.92906251,3370.0,3368.9,1.34008254]
[1768425002450,0.92906251,3370.0,3368.9,0.394]
[1768425002655,0.92906251,3370.0,3368.6,0.94608254]
[1768425002981,5.934542,3370.1,3368.8,0.94608254]
[1768425003187,5.934542,3370.1,3369.0,0.94608254]
[1768425003188,2.967271,3370.1,3369.0,0.94608254]
[1768425003396,2.967271,3370.1,3369.2,0.94608254]
[1768425004587,2.96718652,3370.2,3369.2,0.94608254]
[1768425004882,5.93437304,3370.2,3369.2,0.94608254]
[1768425005086,0.92906251,3370.1,3369.0,0.394]
[1768425005291,0.92906251,3370.1,3368.3,0.15473544]
[1768425005489,9.30055956,3370.2,3367.6,0.94608254]
[1768425005490,0.92906251,3369.7,3367.6,0.94608254]
[1768425005780,0.92906251,3369.1,3367.0,0.94608254]
[1768425005991,0.92906251,3368.9,3367.1,0.94608254]
[1768425006364,5.9368321,3368.8,3367.3,0.94608254]
[1768425006676,2.96835088,3368.9,3367.5,0.94608254]
[1768425006882,3.89679166,3369.6,3367.7,0.94608254]
[1768425007081,5.93559874,3369.5,3367.7,0.94608254]
[1768425007884,2.96779937,3369.5,3367.7,0.94608254]
[1768425008067,2.96779937,3369.5,3367.9,0.94608254]
[1768425008661,2.9677113,3369.6,3368.1,0.94608254]
[1768425008862,3.69404397,3369.6,3368.3,0.94608254]
[1768425009086,0.72633267,3369.6,3368.3,0.94608254]
[1768425009486,0.399,3369.7,3368.5,0.94608254]
[1768425009786,2.96753516,3369.8,3368.5,0.94608254]
[1768425010164,0.002,3369.2,3368.5,0.94608254]
[1768425010604,0.002,3369.2,3368.6,2.96859229]
[1768425010807,0.002,3369.2,3368.6,3.91467483]
[1768425011007,0.002,3369.2,3368.7,0.68833552]
[1768425011165,0.002,3369.2,3368.7,1.63441806]
[1768425012782,0.002,3369.2,3368.7,4.60285701]
[1768425012987,0.002,3369.2,3368.7,1.63441806]
[1768425013174,0.002,3369.2,3368.7,4.60291928]
[1768425013583,0.002,3369.2,3368.8,0.78683332]
[1768425013788,0.002,3369.2,3368.8,0.75714916]
[1768425015471,0.002,3369.2,3368.8,3.72549093]
[1768425015673,0.002,3369.2,3368.8,6.69390698]
[1768425015874,0.002,3369.2,3368.8,4.67157347]
[1768425016073,0.002,3369.2,3368.9,0.76400575]
[1768425016275,0.002,3369.2,3369.0,0.94608254]
[1768425017502,0.002,3369.2,3369.0,3.91423589]
[1768425017683,3.89637071,3370.1,3369.0,3.91423589]
[1768425017885,0.399,3370.3,3369.1,0.97576405]
[1768425018199,0.399,3370.3,3369.3,0.94608254]
[1768425018413,0.92906251,3370.2,3368.3,0.94608254]
[1768425018710,0.92906251,3370.2,3368.2,2.96893035]
[1768425018933,0.92906251,3370.0,3368.3,2.96885419]
[1768425019093,0.92906251,3370.0,3368.4,2.9687651]
[1768425019583,0.92906251,3369.8,3368.1,6.8841485]
[1768425019783,0.92906251,3369.8,3368.2,0.94608254]
[1768425021903,3.88221305,3369.7,3368.4,0.95381506]
[1768425022112,0.68497702,3369.6,3368.6,0.95381506]
[1768425023603,0.002,3369.3,3368.6,0.95381506]
[1768425024601,0.002,3369.3,3368.7,0.9835001]
[1768425024806,0.002,3369.3,3368.7,0.95381506]
[1768425026529,0.002,3369.3,3368.9,0.95381506]
[1768425026832,2.96706856,3370.4,3369.1,0.95381506]
[1768425027019,5.93412967,3370.4,3369.1,0.95381506]
[1768425027331,6.84871949,3370.4,3369.1,0.95381506]
[1768425028197,6.84871949,3370.4,3368.6,3.3625628]
[1768425028198,6.84871949,3370.4,3369.2,0.95381506]
[1768425028397,0.68487195,3370.3,3369.2,0.95381506]
[1768425029328,0.68487195,3370.3,3367.4,0.95381506]
[1768425029329,7.7319629,3370.0,3367.4,0.95381506]
[1768425029532,0.41271924,3369.2,3368.0,0.95481506]
[1768425029714,0.73257168,3369.5,3368.2,0.95381506]
[1768425030303,5.9357749,3369.4,3368.2,0.95381506]
[1768425030512,0.66683466,3369.3,3368.2,0.95381506]
[1768425030692,0.66683466,3369.3,3368.3,0.95381506]
[1768425030896,2.96788745,3369.4,3368.3,0.95381506]
[1768425031509,2.96753516,3369.8,3368.3,0.95381506]
[1768425032314,5.93515554,3369.8,3368.5,0.95381506]
[1768425034321,5.93515554,3369.8,3368.0,2.97005384]
[1768425034322,0.73257168,3369.1,3368.0,0.001]
[1768425034529,0.73257168,3368.9,3368.0,0.001]
[1768425035034,0.73257168,3368.9,3367.4,0.95381506]
[1768425035415,0.73257168,3368.9,3367.4,3.92341948]
[1768425035746,0.399,3369.0,3367.5,0.95381506]
[1768425035950,1.40257626,3369.0,3367.7,0.95381506]
[1768425036248,1.40257626,3369.0,3367.8,0.95381506]
[1768425036607,5.93665588,3368.9,3367.8,0.95381506]
[1768425036808,2.96832794,3368.9,3368.8,0.001]
[1768425037009,5.93665588,3368.9,3367.8,0.95381506]
[1768425037224,0.73392321,3368.8,3367.8,0.95381506]
[1768425038940,5.93700834,3368.7,3367.8,0.95381506]
[1768425043929,2.96850417,3368.7,3367.8,0.95381506]
[1768425044336,0.399,3369.0,3367.8,0.95381506]
[1768425044337,0.399,3369.0,3367.9,0.98350715]
[1768425044563,3.36730294,3369.0,3367.9,0.98350715]
[1768425044836,3.36730294,3369.0,3368.1,0.95381506]
[1768425045273,2.96830294,3369.0,3368.2,0.9835045]
[1768425045460,2.96830294,3369.0,3368.2,0.95381506]
[1768425045662,0.002,3369.5,3368.2,0.95381506]
[1768425045846,0.002,3369.5,3368.4,0.95381506]
[1768425046364,0.002,3369.5,3368.6,0.95381506]
[1768425046557,0.002,3369.5,3368.8,0.95381506]
[1768425047835,0.73457168,3369.5,3368.7,0.68912373]
[1768425048037,0.73457168,3369.5,3360.8,14.810301]
[1768425048038,0.73257168,3369.3,3367.7,0.95381506]
[1768425048362,0.73257168,3369.1,3367.7,0.95381506]
[1768425048562,1.99305299,3369.0,3367.4,0.95381506]
[1768425048760,0.73257168,3368.9,3367.4,0.95381506]
[1768425049270,0.73257168,3368.9,3367.4,3.9234641]
[1768425049564,0.73257168,3368.9,3367.5,0.95381506]
[1768425049740,0.73257168,3368.9,3367.6,0.95381506]
[1768425049946,0.1993053,3368.8,3367.7,0.95381506]
[1768425050141,0.1993053,3368.8,3367.7,0.95481506]
[1768425050346,1.26048131,3369.0,3367.8,0.93207876]
[1768425050577,2.96799054,3369.3,3368.0,0.93207876]
[1768425050777,5.93598108,3369.3,3368.0,0.93207876]
[1768425052473,5.93598108,3369.3,3368.1,0.93207876]
[1768425052855,0.73257168,3369.2,3366.3,0.93207876]
[1768425053043,0.73257168,3368.5,3366.7,0.93207876]
[1768425053372,0.399,3368.4,3367.0,0.93207876]
[1768425053571,0.399,3368.4,3365.8,3.2698225]
[1768425053572,0.399,3368.4,3367.3,0.93207876]
[1768425053771,0.93048255,3369.2,3366.7,0.394]
[1768425053772,0.93048255,3369.2,3367.6,0.93207876]
[1768425054072,1.09659959,3369.1,3367.8,0.93207876]
[1768425054450,5.93647966,3369.0,3367.8,0.93207876]
[1768425056661,5.93647966,3369.0,3366.6,0.93207876]
[1768425056662,0.73257168,3368.5,3366.6,0.93207876]
[1768425056862,0.399,3368.4,3367.1,0.93207876]
[1768425059159,2.02952757,3368.9,3367.3,0.93207876]
[1768425059160,2.96841605,3368.8,3367.3,0.93207876]
[1768425059509,2.96841605,3368.8,3367.2,5.93965312]
[1768425059510,5.93683676,3368.8,3367.5,0.93207876]
[1768425061101,0.73457168,3369.5,3367.7,0.93207876]
[1768425061301,30.0,3369.4,3367.0,0.93207876]
[1768425061500,10.73457168,3369.5,3367.2,0.93207876]
[1768425061501,0.73257168,3369.3,3367.2,0.93207876]
[1768425061814,0.73257168,3369.3,3367.2,1.61927706]
[1768425062102,0.73257168,3369.3,3367.2,4.58909465]
[1768425062576,0.73257168,3369.3,3367.3,2.96973529]
[1768425062784,0.73257168,3369.3,3367.2,1.61927706]
[1768425063108,0.73257168,3369.1,3367.2,0.93207876]
[1768425063310,0.73257168,3368.9,3367.2,0.93207876]
[1768425065072,0.73257168,3368.9,3367.3,0.93207876]
[1768425065474,8.90524815,3368.8,3367.3,0.93207876]
[1768425065916,5.9368321,3368.8,3367.4,0.93207876]
[1768425066210,5.9368321,3368.8,3367.5,1.32225865]
[1768425066211,1.00386683,3368.7,3367.5,1.32225865]
[1768425067321,0.73257168,3368.6,3366.9,0.93207876]
[1768425067476,0.73257168,3368.4,3366.5,0.93207876]
[1768425068398,0.73257168,3368.4,3366.5,0.43257876]
[1768425068700,0.73257168,3368.4,3366.5,3.40301675]
[1768425069000,0.73257168,3368.4,3366.5,3.40301075]
[1768425069200,0.94473,3368.2,3366.5,1.10934148]
[1768425069507,5.93824228,3368.0,3366.6,0.93207876]
[1768425071731,5.93806596,3368.1,3366.8,0.93207876]
[1768425071911,2.96903298,3368.1,3366.8,0.93207876]
[1768425072320,2.96903298,3368.1,3367.0,0.93207876]
[1768425072558,5.93806596,3368.1,3367.2,0.93207876]
[1768425072705,6.53187256,3368.1,3367.2,0.93207876]
[1768425073706,7.47660256,3368.1,3365.9,0.93207876]
[1768425073933,7.47660256,3368.1,3366.4,0.93207876]
[1768425073934,0.94473,3368.0,3366.4,0.93207876]
[1768425074135,0.94473,3368.0,3366.5,3.9024716]
[1768425074432,1.34146419,3367.9,3366.5,4.58977864]
[1768425074606,1.34146419,3367.9,3366.6,0.93207876]
[1768425074808,1.34146419,3367.9,3366.6,3.90240754]
[1768425076234,5.93859492,3367.8,3366.6,3.90240754]
[1768425076535,5.93859492,3367.8,3366.8,0.001]